[Event "Live Chess"]
[Site "Chess.com"]
[Date "2023.05.21"]
[Round "-"]
[White "LiamBellwood"]
[Black "Duke_of_Bebington"]
[Result "1-0"]
[WhiteElo "2027"]
[BlackElo "1583"]
[TimeControl "300"]
[EndTime "19:08:56 PDT"]
[Termination "LiamBellwood won by checkmate"]

1. d4 {[%clk 0:04:58.9]} 1... d5 {[%clk 0:04:57.7]} 2. Nc3 {[%clk 0:04:58.6]}
2... Nf6 {[%clk 0:04:54.3]} 3. Bf4 {[%clk 0:04:58.2]} 3... c6 {[%clk 0:04:51.4]}
4. e3 {[%clk 0:04:57.4]} 4... Bf5 {[%clk 0:04:50.2]} 5. f3 {[%clk 0:04:56.9]}
5... h6 {[%clk 0:04:49]} 6. g4 {[%clk 0:04:56]} 6... Bh7 {[%clk 0:04:45.4]} 7.
Bd3 {[%clk 0:04:55.9]} 7... Bxd3 {[%clk 0:04:39.8]} 8. Qxd3 {[%clk 0:04:55.8]}
8... e6 {[%clk 0:04:25.8]} 9. Nge2 {[%clk 0:04:53.8]} 9... Bd6 {[%clk
0:04:24.5]} 10. h4 {[%clk 0:04:51.7]} 10... Na6 {[%clk 0:04:08.9]} 11. a3 {[%clk
0:04:29.3]} 11... Qc7 {[%clk 0:04:04.5]} 12. Bxd6 {[%clk 0:04:28]} 12... Qxd6
{[%clk 0:04:03.1]} 13. Nf4 {[%clk 0:04:27.9]} 13... O-O-O {[%clk 0:03:58]} 14.
O-O-O {[%clk 0:04:23.6]} 14... Nc7 {[%clk 0:03:54.4]} 15. g5 {[%clk 0:04:22.5]}
15... hxg5 {[%clk 0:03:53]} 16. hxg5 {[%clk 0:04:22.4]} 16... Rxh1 {[%clk
0:03:49.5]} 17. Rxh1 {[%clk 0:04:22.3]} 17... Nd7 {[%clk 0:03:48.3]} 18. Rh7
{[%clk 0:04:20.5]} 18... Qf8 {[%clk 0:03:45.1]} 19. Nh5 {[%clk 0:04:15.1]} 19...
g6 {[%clk 0:03:42.8]} 20. Nf6 {[%clk 0:03:52.9]} 20... Nxf6 {[%clk 0:03:41]} 21.
gxf6 {[%clk 0:03:52.8]} 21... Ne8 {[%clk 0:03:31.6]} 22. e4 {[%clk 0:03:42.6]}
22... Nxf6 {[%clk 0:03:29.8]} 23. Rh3 {[%clk 0:03:36]} 23... Qd6 {[%clk
0:03:19.7]} 24. e5 {[%clk 0:03:34.5]} 24... Qe7 {[%clk 0:03:16.2]} 25. exf6
{[%clk 0:03:33.2]} 25... Qxf6 {[%clk 0:03:16.1]} 26. Qe3 {[%clk 0:03:23.5]}
26... Rh8 {[%clk 0:03:08.9]} 27. Rxh8+ {[%clk 0:03:13.1]} 27... Qxh8 {[%clk
0:03:07.7]} 28. Qe5 {[%clk 0:03:13]} 28... Qh1+ {[%clk 0:03:02.7]} 29. Kd2
{[%clk 0:03:01.6]} 29... Qxf3 {[%clk 0:03:00.9]} 30. Na4 {[%clk 0:02:54.2]}
30... Qf2+ {[%clk 0:02:50.5]} 31. Kd3 {[%clk 0:02:44.5]} 31... Qf3+ {[%clk
0:02:44.8]} 32. Kd2 {[%clk 0:02:42.8]} 32... Qf2+ {[%clk 0:02:42.9]} 33. Kc3
{[%clk 0:02:41.7]} 33... a5 {[%clk 0:02:36.6]} 34. Nc5 {[%clk 0:02:24.3]} 34...
Qf3+ {[%clk 0:02:22.4]} 35. Nd3 {[%clk 0:02:13.1]} 35... Qe4 {[%clk 0:02:19.3]}
36. Qh8+ {[%clk 0:02:01.5]} 36... Kc7 {[%clk 0:02:14.4]} 37. Qe8 {[%clk
0:01:49.8]} 37... Qf3 {[%clk 0:02:04.6]} 38. Qe7+ {[%clk 0:01:38.6]} 38... Kb6
{[%clk 0:02:02.6]} 39. Qc5+ {[%clk 0:01:28.7]} 39... Ka6 {[%clk 0:02:01.5]} 40.
b3 {[%clk 0:01:20.4]} 40... g5 {[%clk 0:01:59.4]} 41. Kb2 {[%clk 0:01:17.6]}
41... g4 {[%clk 0:01:56.5]} 42. b4 {[%clk 0:01:16.5]} 42... g3 {[%clk
0:01:40.1]} 43. Qxa5# {[%clk 0:01:14.8]} 1-0

[Event "Live Chess"]
[Site "Chess.com"]
[Date "2023.05.21"]
[Round "-"]
[White "Tushinskiy"]
[Black "Conradical12"]
[Result "1-0"]
[WhiteElo "2180"]
[BlackElo "1652"]
[TimeControl "300"]
[EndTime "19:09:06 PDT"]
[Termination "Tushinskiy won by checkmate"]

1. d4 {[%clk 0:04:54.4]} 1... Nf6 {[%clk 0:04:55.8]} 2. c3 {[%clk 0:04:54.3]}
2... d5 {[%clk 0:04:53.1]} 3. Nf3 {[%clk 0:04:41.5]} 3... Bf5 {[%clk 0:04:51.4]}
4. Bf4 {[%clk 0:04:40.3]} 4... Nc6 {[%clk 0:04:49.7]} 5. Nbd2 {[%clk 0:04:33.2]}
5... e6 {[%clk 0:04:48.5]} 6. Qb3 {[%clk 0:04:31.3]} 6... Na5 {[%clk 0:04:44.7]}
7. Qa4+ {[%clk 0:04:29.8]} 7... c6 {[%clk 0:04:43.4]} 8. b4 {[%clk 0:04:28.4]}
8... Nc4 {[%clk 0:04:40.1]} 9. Nxc4 {[%clk 0:04:15.8]} 9... dxc4 {[%clk
0:04:36.8]} 10. e3 {[%clk 0:04:14.7]} 10... Nd5 {[%clk 0:04:28.9]} 11. Bxc4
{[%clk 0:04:08.1]} 11... Nxf4 {[%clk 0:04:25.1]} 12. exf4 {[%clk 0:04:06]} 12...
b5 {[%clk 0:04:21.6]} 13. Bxb5 {[%clk 0:04:04.9]} 13... cxb5 {[%clk 0:04:20.5]}
14. Qxb5+ {[%clk 0:04:04.8]} 14... Qd7 {[%clk 0:04:19.3]} 15. Qxd7+ {[%clk
0:04:03.6]} 15... Kxd7 {[%clk 0:04:18]} 16. Kd2 {[%clk 0:04:02.7]} 16... Bd6
{[%clk 0:04:12.5]} 17. Ke3 {[%clk 0:04:00.5]} 17... Rhc8 {[%clk 0:04:06.1]} 18.
Rhc1 {[%clk 0:03:57.4]} 18... Rc4 {[%clk 0:04:02.3]} 19. Nd2 {[%clk 0:03:53.2]}
19... Rcc8 {[%clk 0:03:59.3]} 20. a3 {[%clk 0:03:51.7]} 20... h6 {[%clk
0:03:18.5]} 21. g3 {[%clk 0:03:44.5]} 21... g5 {[%clk 0:03:16.6]} 22. fxg5
{[%clk 0:03:43]} 22... hxg5 {[%clk 0:03:15.3]} 23. c4 {[%clk 0:03:41.8]} 23...
Be7 {[%clk 0:03:12.5]} 24. c5 {[%clk 0:03:36.2]} 24... Kc6 {[%clk 0:03:07.9]}
25. a4 {[%clk 0:03:33.2]} 25... a6 {[%clk 0:03:05.6]} 26. Nc4 {[%clk 0:03:31.8]}
26... Bf6 {[%clk 0:03:01.7]} 27. Nb6 {[%clk 0:03:26.3]} 27... Rd8 {[%clk
0:02:56.2]} 28. Rc4 {[%clk 0:03:15.5]} 28... Rab8 {[%clk 0:02:48.9]} 29. Rac1
{[%clk 0:03:10.2]} 29... g4 {[%clk 0:02:40.8]} 30. R1c3 {[%clk 0:03:04.7]} 30...
e5 {[%clk 0:02:34.1]} 31. d5+ {[%clk 0:03:03]} 31... Kc7 {[%clk 0:02:31.1]} 32.
b5 {[%clk 0:02:59.6]} 32... axb5 {[%clk 0:02:28.6]} 33. axb5 {[%clk 0:02:58.6]}
33... e4 {[%clk 0:02:25.1]} 34. Ra3 {[%clk 0:02:56.2]} 34... Rb7 {[%clk
0:02:21.9]} 35. d6+ {[%clk 0:02:50.8]} 35... Kb8 {[%clk 0:02:20.4]} 36. Ra8#
{[%clk 0:02:48.6]} 1-0

[Event "Live Chess"]
[Site "Chess.com"]
[Date "2023.05.21"]
[Round "-"]
[White "xx_blindpuffin_xx"]
[Black "therealab0ne"]
[Result "1-0"]
[WhiteElo "2181"]
[BlackElo "724"]
[TimeControl "300"]
[EndTime "19:09:22 PDT"]
[Termination "xx_blindpuffin_xx won by checkmate"]

1. d3 {[%clk 0:04:57.2]} 1... Nc6 {[%clk 0:04:56.7]} 2. c3 {[%clk 0:04:57.1]}
2... d5 {[%clk 0:04:54.8]} 3. Nd2 {[%clk 0:04:57]} 3... Nf6 {[%clk 0:04:53.3]}
4. e4 {[%clk 0:04:54.9]} 4... dxe4 {[%clk 0:04:52.3]} 5. dxe4 {[%clk 0:04:54.8]}
5... e5 {[%clk 0:04:49.2]} 6. Bc4 {[%clk 0:04:50.3]} 6... Be6 {[%clk 0:04:41.9]}
7. Bxe6 {[%clk 0:04:47.4]} 7... fxe6 {[%clk 0:04:41.1]} 8. Qb3 {[%clk
0:04:45.3]} 8... Qd7 {[%clk 0:04:25]} 9. Ngf3 {[%clk 0:04:34.8]} 9... O-O-O
{[%clk 0:04:21.2]} 10. O-O {[%clk 0:04:19.6]} 10... Bc5 {[%clk 0:03:45.6]} 11.
Nc4 {[%clk 0:04:07.1]} 11... Nxe4 {[%clk 0:03:23.8]} 12. Ncxe5 {[%clk
0:04:04.3]} 12... Bxf2+ {[%clk 0:03:13.8]} 13. Rxf2 {[%clk 0:03:49.9]} 13...
Qd1+ {[%clk 0:03:04.6]} 14. Rf1 {[%clk 0:03:47.8]} 14... Qxb3 {[%clk 0:02:47.8]}
15. axb3 {[%clk 0:03:47.7]} 15... Nxe5 {[%clk 0:02:22.7]} 16. Nxe5 {[%clk
0:03:47.6]} 16... Rhf8 {[%clk 0:01:58.8]} 17. Be3 {[%clk 0:03:43.6]} 17... Kb8
{[%clk 0:01:52.6]} 18. Bxa7+ {[%clk 0:03:39.7]} 18... Kc8 {[%clk 0:01:48.1]} 19.
Be3 {[%clk 0:03:32]} 19... Rf5 {[%clk 0:01:34]} 20. Ra8# {[%clk 0:03:29.5]} 1-0

[Event "Live Chess"]
[Site "Chess.com"]
[Date "2023.05.21"]
[Round "-"]
[White "worldchessleaguelive"]
[Black "whatnot126"]
[Result "0-1"]
[WhiteElo "1354"]
[BlackElo "2056"]
[TimeControl "300"]
[EndTime "19:09:33 PDT"]
[Termination "whatnot126 won by checkmate"]

1. d4 {[%clk 0:04:58.8]} 1... d6 {[%clk 0:04:58.8]} 2. Bf4 {[%clk 0:04:57.3]}
2... Nf6 {[%clk 0:04:58.2]} 3. Nf3 {[%clk 0:04:56]} 3... g6 {[%clk 0:04:57.8]}
4. e3 {[%clk 0:04:54.3]} 4... Bg7 {[%clk 0:04:57.4]} 5. Be2 {[%clk 0:04:52.7]}
5... O-O {[%clk 0:04:56.4]} 6. O-O {[%clk 0:04:51.1]} 6... Nbd7 {[%clk 0:04:56]}
7. Nbd2 {[%clk 0:04:49.3]} 7... b6 {[%clk 0:04:55.1]} 8. c3 {[%clk 0:04:47.4]}
8... Bb7 {[%clk 0:04:54.8]} 9. Ne1 {[%clk 0:04:45.1]} 9... e5 {[%clk 0:04:52.2]}
10. Bg5 {[%clk 0:04:43.4]} 10... h6 {[%clk 0:04:49.5]} 11. Bxf6 {[%clk
0:04:42.5]} 11... Nxf6 {[%clk 0:04:49.4]} 12. dxe5 {[%clk 0:04:39.7]} 12... dxe5
{[%clk 0:04:47.8]} 13. Ndf3 {[%clk 0:04:35.9]} 13... e4 {[%clk 0:04:44.8]} 14.
Nd4 {[%clk 0:04:30.8]} 14... a6 {[%clk 0:04:44.4]} 15. Nec2 {[%clk 0:04:22.9]}
15... c5 {[%clk 0:04:42.9]} 16. Nb3 {[%clk 0:04:20.3]} 16... Qe7 {[%clk
0:04:42.4]} 17. Qe1 {[%clk 0:04:10]} 17... Nd7 {[%clk 0:04:40.3]} 18. Rd1 {[%clk
0:04:08.8]} 18... Ne5 {[%clk 0:04:38.1]} 19. f4 {[%clk 0:04:04.7]} 19... exf3
{[%clk 0:04:33.1]} 20. Bxf3 {[%clk 0:04:01.8]} 20... Nxf3+ {[%clk 0:04:32.2]}
21. Rxf3 {[%clk 0:03:58.3]} 21... Bxf3 {[%clk 0:04:28.3]} 22. gxf3 {[%clk
0:03:57.6]} 22... Qg5+ {[%clk 0:04:26.9]} 23. Kf2 {[%clk 0:03:56.3]} 23... Qh4+
{[%clk 0:04:25]} 24. Kg2 {[%clk 0:03:54.6]} 24... Qxe1 {[%clk 0:04:18.4]} 25.
Nxe1 {[%clk 0:03:50]} 25... Rad8 {[%clk 0:04:16.6]} 26. Rc1 {[%clk 0:03:44.2]}
26... a5 {[%clk 0:04:15.5]} 27. Kg3 {[%clk 0:03:29.5]} 27... a4 {[%clk
0:04:14.5]} 28. Na1 {[%clk 0:03:26.4]} 28... Rd2 {[%clk 0:04:13.4]} 29. Nac2
{[%clk 0:03:24.4]} 29... Rfd8 {[%clk 0:03:56.3]} 30. h4 {[%clk 0:03:14.5]} 30...
Re2 {[%clk 0:03:52.9]} 31. Kf4 {[%clk 0:03:10.1]} 31... h5 {[%clk 0:03:46.5]}
32. Kg3 {[%clk 0:02:57.8]} 32... Bh6 {[%clk 0:03:43]} 33. f4 {[%clk 0:02:54.8]}
33... Rdd2 {[%clk 0:03:36.7]} 34. Kf3 {[%clk 0:02:51.8]} 34... f6 {[%clk
0:03:32.1]} 35. b3 {[%clk 0:02:34]} 35... axb3 {[%clk 0:03:26.9]} 36. axb3
{[%clk 0:02:32.6]} 36... g5 {[%clk 0:03:26.7]} 37. Na3 {[%clk 0:02:07.8]} 37...
g4+ {[%clk 0:03:23.7]} 38. Ke4 {[%clk 0:02:04.4]} 38... g3 {[%clk 0:03:23]} 39.
Nf3 {[%clk 0:01:48.8]} 39... Rb2 {[%clk 0:03:14.8]} 40. Rg1 {[%clk 0:01:34]}
40... g2 {[%clk 0:03:12.7]} 41. Nc4 {[%clk 0:01:10.2]} 41... Rxb3 {[%clk
0:03:11.8]} 42. Kf5 {[%clk 0:00:56.6]} 42... Rxc3 {[%clk 0:03:09.2]} 43. Nxb6
{[%clk 0:00:54.3]} 43... Rcxe3 {[%clk 0:03:07.7]} 44. Nh2 {[%clk 0:00:36.4]}
44... Kf7 {[%clk 0:03:02.3]} 45. Nd5 {[%clk 0:00:29]} 45... Rf2 {[%clk
0:02:58.6]} 46. Nxe3 {[%clk 0:00:25.7]} 46... Rxf4# {[%clk 0:02:57.7]} 0-1

[Event "Live Chess"]
[Site "Chess.com"]
[Date "2023.05.21"]
[Round "-"]
[White "garyjc"]
[Black "Biranidun"]
[Result "0-1"]
[WhiteElo "1055"]
[BlackElo "2549"]
[TimeControl "300"]
[EndTime "19:09:41 PDT"]
[Termination "Biranidun won by resignation"]

1. e4 {[%clk 0:04:56.3]} 1... c5 {[%clk 0:04:58.6]} 2. Nc3 {[%clk 0:04:51.7]}
2... g6 {[%clk 0:04:06.5]} 3. f4 {[%clk 0:04:36.4]} 3... Bg7 {[%clk 0:04:03.5]}
4. Nf3 {[%clk 0:04:30.7]} 4... Nc6 {[%clk 0:04:02.1]} 5. Bc4 {[%clk 0:04:21.8]}
5... e6 {[%clk 0:03:55.6]} 6. d3 {[%clk 0:04:13.3]} 6... Nge7 {[%clk 0:03:52.7]}
7. O-O {[%clk 0:04:10]} 7... d5 {[%clk 0:03:51.6]} 8. exd5 {[%clk 0:04:01.9]}
8... exd5 {[%clk 0:03:51.5]} 9. Bb5 {[%clk 0:03:51.3]} 9... O-O {[%clk
0:03:46.6]} 10. Bxc6 {[%clk 0:03:35.8]} 10... Nxc6 {[%clk 0:03:45.4]} 11. Qe1
{[%clk 0:03:26.3]} 11... Bg4 {[%clk 0:03:42]} 12. Qg3 {[%clk 0:03:07.2]} 12...
Bxf3 {[%clk 0:03:41]} 13. Rxf3 {[%clk 0:02:59.9]} 13... Nd4 {[%clk 0:03:40.9]}
14. Rf2 {[%clk 0:02:53.7]} 14... Re8 {[%clk 0:03:37]} 15. Be3 {[%clk 0:02:41.3]}
15... Nf5 {[%clk 0:03:35.8]} 16. Qf3 {[%clk 0:02:09.4]} 16... Bxc3 {[%clk
0:03:32.3]} 17. bxc3 {[%clk 0:02:07.3]} 17... Rxe3 {[%clk 0:03:31.2]} 18. Qg4
{[%clk 0:01:56.8]} 18... h5 {[%clk 0:03:29.3]} 19. Qg5 {[%clk 0:01:44.2]} 19...
Qxg5 {[%clk 0:03:28.1]} 20. fxg5 {[%clk 0:01:43.7]} 20... Rae8 {[%clk
0:03:27.9]} 21. Raf1 {[%clk 0:01:36.3]} 21... Re1 {[%clk 0:03:26.6]} 22. Rxe1
{[%clk 0:01:32.1]} 22... Rxe1+ {[%clk 0:03:26.5]} 23. Rf1 {[%clk 0:01:30.9]}
23... Rxf1+ {[%clk 0:03:26.3]} 24. Kxf1 {[%clk 0:01:29.9]} 24... Ne3+ {[%clk
0:03:26.2]} 25. Kf2 {[%clk 0:01:29]} 25... Nxc2 {[%clk 0:03:26.1]} 26. Kf3
{[%clk 0:01:26.8]} 26... Ne1+ {[%clk 0:03:23]} 27. Kf4 {[%clk 0:01:24.7]} 27...
Nxd3+ {[%clk 0:03:21.6]} 28. Kg3 {[%clk 0:01:18.9]} 28... Kg7 {[%clk 0:03:19.9]}
0-1

[Event "Live Chess"]
[Site "Chess.com"]
[Date "2023.05.21"]
[Round "-"]
[White "raminguy"]
[Black "ramses-IIG"]
[Result "1-0"]
[WhiteElo "1961"]
[BlackElo "849"]
[TimeControl "300"]
[EndTime "19:10:02 PDT"]
[Termination "raminguy won by resignation"]

1. d4 {[%clk 0:04:59]} 1... d5 {[%clk 0:04:59.9]} 2. Nc3 {[%clk 0:04:57.9]} 2...
e6 {[%clk 0:04:57.7]} 3. Bf4 {[%clk 0:04:57.5]} 3... Nf6 {[%clk 0:04:57.1]} 4.
Nb5 {[%clk 0:04:56.5]} 4... Bd6 {[%clk 0:04:51.6]} 5. Nxd6+ {[%clk 0:04:55.3]}
5... cxd6 {[%clk 0:04:51.5]} 6. e3 {[%clk 0:04:54.8]} 6... e5 {[%clk 0:04:49.6]}
7. dxe5 {[%clk 0:04:53.6]} 7... dxe5 {[%clk 0:04:49.5]} 8. Bxe5 {[%clk
0:04:53.2]} 8... Nc6 {[%clk 0:04:45.1]} 9. Bg3 {[%clk 0:04:51.8]} 9... Bf5
{[%clk 0:04:40.8]} 10. c3 {[%clk 0:04:50.6]} 10... Qb6 {[%clk 0:04:31.5]} 11.
Qb3 {[%clk 0:04:47.5]} 11... Qxb3 {[%clk 0:04:26.5]} 12. axb3 {[%clk 0:04:47.4]}
12... O-O {[%clk 0:04:23.3]} 13. Nf3 {[%clk 0:04:46.3]} 13... Bc2 {[%clk
0:04:18.2]} 14. Ra3 {[%clk 0:04:36.7]} 14... b6 {[%clk 0:04:01.2]} 15. Bb5
{[%clk 0:04:34]} 15... Na5 {[%clk 0:03:59.2]} 16. Nd4 {[%clk 0:04:33.6]} 16...
Be4 {[%clk 0:03:48.4]} 17. O-O {[%clk 0:04:31.7]} 17... h6 {[%clk 0:03:28.4]}
18. Rfa1 {[%clk 0:04:25.2]} 18... Ng4 {[%clk 0:03:14.5]} 19. f3 {[%clk
0:03:37.8]} 19... Nxe3 {[%clk 0:03:13.3]} 20. fxe4 {[%clk 0:03:35.3]} 20... a6
{[%clk 0:02:58.2]} 21. Bd3 {[%clk 0:03:31.7]} 21... Nc6 {[%clk 0:02:50.5]} 22.
Nxc6 {[%clk 0:03:28.8]} 22... dxe4 {[%clk 0:02:46.4]} 23. Bxe4 {[%clk
0:03:27.2]} 23... a5 {[%clk 0:02:41.2]} 24. Ne7+ {[%clk 0:03:25.2]} 24... Kh8
{[%clk 0:02:35.8]} 25. Bxa8 {[%clk 0:03:25.1]} 25... Rxa8 {[%clk 0:02:31.5]} 26.
b4 {[%clk 0:03:20.6]} 26... Nc2 {[%clk 0:02:30]} 27. bxa5 {[%clk 0:03:18.2]}
27... Nxa3 {[%clk 0:02:28.8]} 28. Rxa3 {[%clk 0:03:17.2]} 28... bxa5 {[%clk
0:02:26.8]} 29. Nc6 {[%clk 0:03:14.7]} 29... a4 {[%clk 0:02:23.7]} 30. Nd4
{[%clk 0:03:12.5]} 30... g6 {[%clk 0:02:21.8]} 31. b3 {[%clk 0:03:08.1]} 31...
Kg7 {[%clk 0:02:16.3]} 32. Rxa4 {[%clk 0:03:05.6]} 32... Rxa4 {[%clk 0:02:12.5]}
33. bxa4 {[%clk 0:03:04.3]} 1-0

[Event "Live Chess"]
[Site "Chess.com"]
[Date "2023.05.21"]
[Round "-"]
[White "Long1968"]
[Black "blowerd"]
[Result "0-1"]
[WhiteElo "1016"]
[BlackElo "1358"]
[TimeControl "300"]
[EndTime "19:10:13 PDT"]
[Termination "blowerd won by resignation"]

1. e4 {[%clk 0:04:55.9]} 1... e5 {[%clk 0:04:59.2]} 2. f4 {[%clk 0:04:53.7]}
2... exf4 {[%clk 0:04:57.3]} 3. Bc4 {[%clk 0:04:51.3]} 3... Be7 {[%clk
0:04:55.8]} 4. Nf3 {[%clk 0:04:48.9]} 4... Bh4+ {[%clk 0:04:54.3]} 5. Kf1 {[%clk
0:04:44.3]} 5... Bf6 {[%clk 0:04:44.7]} 6. e5 {[%clk 0:04:38.9]} 6... Be7 {[%clk
0:04:42.2]} 7. d4 {[%clk 0:04:36.3]} 7... d5 {[%clk 0:04:40.8]} 8. Bd3 {[%clk
0:04:27]} 8... b6 {[%clk 0:04:38.2]} 9. Bxf4 {[%clk 0:04:23.5]} 9... Ba6 {[%clk
0:04:36.4]} 10. Bxa6 {[%clk 0:04:02.2]} 10... Nxa6 {[%clk 0:04:34.5]} 11. Qd3
{[%clk 0:04:00.9]} 11... Nb4 {[%clk 0:04:32.1]} 12. Qb5+ {[%clk 0:03:58.1]}
12... Qd7 {[%clk 0:04:27.9]} 13. Qxd7+ {[%clk 0:03:36.2]} 13... Kxd7 {[%clk
0:04:25.3]} 14. Ne1 {[%clk 0:03:31.2]} 14... Rd8 {[%clk 0:04:14.1]} 15. a3
{[%clk 0:03:25.6]} 15... Nc6 {[%clk 0:04:11.8]} 16. Nf3 {[%clk 0:03:16.6]} 16...
h6 {[%clk 0:04:10.5]} 17. Nc3 {[%clk 0:03:11.3]} 17... Kc8 {[%clk 0:04:05.6]}
18. Re1 {[%clk 0:03:02.4]} 18... Kb7 {[%clk 0:04:02.7]} 19. e6 {[%clk
0:02:55.8]} 19... fxe6 {[%clk 0:03:53.6]} 20. Rxe6 {[%clk 0:02:52.9]} 20... g5
{[%clk 0:03:50.9]} 21. Be5 {[%clk 0:02:40]} 21... Rh7 {[%clk 0:03:44]} 22. Kf2
{[%clk 0:02:34.2]} 22... g4 {[%clk 0:03:39.7]} 23. Nd2 {[%clk 0:02:23.6]} 23...
Rf7+ {[%clk 0:03:33.2]} 24. Ke2 {[%clk 0:02:15.7]} 24... Nf6 {[%clk 0:02:58.7]}
25. Rf1 {[%clk 0:02:02.9]} 25... Rdf8 {[%clk 0:02:41.2]} 26. Nd1 {[%clk
0:01:27.6]} 26... Nd7 {[%clk 0:02:14.4]} 27. Rxf7 {[%clk 0:01:16.2]} 27... Rxf7
{[%clk 0:02:08.8]} 28. Bg3 {[%clk 0:01:09]} 28... Nxd4+ {[%clk 0:02:05.4]} 0-1

[Event "Live Chess"]
[Site "Chess.com"]
[Date "2023.05.21"]
[Round "-"]
[White "grillage"]
[Black "NateSolon"]
[Result "0-1"]
[WhiteElo "1807"]
[BlackElo "2642"]
[TimeControl "300"]
[EndTime "19:10:14 PDT"]
[Termination "NateSolon won by checkmate"]

1. d4 {[%clk 0:04:58.4]} 1... Nf6 {[%clk 0:04:58.8]} 2. Nc3 {[%clk 0:04:55.6]}
2... d5 {[%clk 0:04:57.7]} 3. Bf4 {[%clk 0:04:53.8]} 3... c5 {[%clk 0:04:55.6]}
4. e4 {[%clk 0:04:52.1]} 4... cxd4 {[%clk 0:04:48.2]} 5. Qxd4 {[%clk 0:04:48.8]}
5... Nc6 {[%clk 0:04:47]} 6. Bb5 {[%clk 0:04:47.7]} 6... Bd7 {[%clk 0:04:46.3]}
7. Bxc6 {[%clk 0:04:46.3]} 7... Bxc6 {[%clk 0:04:46.2]} 8. e5 {[%clk 0:04:45.5]}
8... Nd7 {[%clk 0:04:45.7]} 9. e6 {[%clk 0:04:44.3]} 9... fxe6 {[%clk
0:04:44.5]} 10. Nf3 {[%clk 0:04:40.1]} 10... Qb6 {[%clk 0:04:42.4]} 11. O-O-O
{[%clk 0:04:08.1]} 11... Qxd4 {[%clk 0:04:34.5]} 12. Nxd4 {[%clk 0:03:59.4]}
12... e5 {[%clk 0:04:33.5]} 13. Nxc6 {[%clk 0:03:50.9]} 13... bxc6 {[%clk
0:04:32.6]} 14. Bg3 {[%clk 0:03:43.7]} 14... g6 {[%clk 0:04:29]} 15. Rhe1 {[%clk
0:03:41.7]} 15... Bg7 {[%clk 0:04:28]} 16. f4 {[%clk 0:03:38.6]} 16... e4 {[%clk
0:04:23.7]} 17. a3 {[%clk 0:03:29.4]} 17... Nb6 {[%clk 0:04:18]} 18. Ne2 {[%clk
0:03:13]} 18... Nc4 {[%clk 0:04:09.3]} 19. Nd4 {[%clk 0:02:55.5]} 19... c5
{[%clk 0:03:46.9]} 20. Ne6 {[%clk 0:02:54.4]} 20... Bxb2+ {[%clk 0:03:45.3]} 21.
Kb1 {[%clk 0:02:53.6]} 21... Rb8 {[%clk 0:03:33.5]} 22. f5 {[%clk 0:02:35.7]}
22... Be5+ {[%clk 0:03:23.9]} 23. Kc1 {[%clk 0:02:26.8]} 23... Bxg3 {[%clk
0:03:22.3]} 24. hxg3 {[%clk 0:02:24.9]} 24... gxf5 {[%clk 0:03:19.4]} 25. Rxd5
{[%clk 0:02:16.4]} 25... Kf7 {[%clk 0:02:47.6]} 26. Nxc5 {[%clk 0:02:14.6]}
26... e6 {[%clk 0:02:42.1]} 27. Rd7+ {[%clk 0:02:12.7]} 27... Kf6 {[%clk
0:02:40.9]} 28. Rxa7 {[%clk 0:02:09.6]} 28... Rbc8 {[%clk 0:02:35.9]} 29. Nd7+
{[%clk 0:02:05.5]} 29... Kg6 {[%clk 0:02:35.1]} 30. Rd1 {[%clk 0:01:46.4]} 30...
Kg5 {[%clk 0:02:19.1]} 31. Ra6 {[%clk 0:01:15.5]} 31... Ne3 {[%clk 0:02:03.3]}
32. Rh1 {[%clk 0:01:06.5]} 32... Rxc2+ {[%clk 0:01:59.6]} 33. Kb1 {[%clk
0:01:05.9]} 33... Rc7 {[%clk 0:01:35]} 34. Ne5 {[%clk 0:00:51.8]} 34... Rb8+
{[%clk 0:01:33.3]} 35. Ka1 {[%clk 0:00:46.1]} 35... Rcb7 {[%clk 0:01:11.4]} 36.
a4 {[%clk 0:00:41.4]} 36... Nc2+ {[%clk 0:01:09.3]} 37. Ka2 {[%clk 0:00:40.4]}
37... Rb2# {[%clk 0:01:09.2]} 0-1

[Event "Live Chess"]
[Site "Chess.com"]
[Date "2023.05.21"]
[Round "-"]
[White "KeithArkell"]
[Black "PaulyD81"]
[Result "1-0"]
[WhiteElo "2573"]
[BlackElo "1202"]
[TimeControl "300"]
[EndTime "19:10:55 PDT"]
[Termination "KeithArkell won on time"]

1. d4 {[%clk 0:04:58.2]} 1... Nf6 {[%clk 0:04:53.9]} 2. Nf3 {[%clk 0:04:57.3]}
2... e6 {[%clk 0:04:52.5]} 3. c4 {[%clk 0:04:56.6]} 3... d5 {[%clk 0:04:49.1]}
4. cxd5 {[%clk 0:04:55.5]} 4... Nxd5 {[%clk 0:04:44.5]} 5. Nc3 {[%clk
0:04:54.4]} 5... Nxc3 {[%clk 0:04:38.5]} 6. bxc3 {[%clk 0:04:54.3]} 6... c6
{[%clk 0:04:31.8]} 7. e4 {[%clk 0:04:52.9]} 7... Nd7 {[%clk 0:04:25.5]} 8. Bd3
{[%clk 0:04:51.6]} 8... Nf6 {[%clk 0:04:24]} 9. e5 {[%clk 0:04:48]} 9... Nd5
{[%clk 0:04:19.4]} 10. Bd2 {[%clk 0:04:47.1]} 10... Be7 {[%clk 0:04:08.1]} 11.
h4 {[%clk 0:04:45.8]} 11... f6 {[%clk 0:04:06.9]} 12. exf6 {[%clk 0:04:38.8]}
12... Bxf6 {[%clk 0:03:59.7]} 13. Qe2 {[%clk 0:04:37.9]} 13... Qe7 {[%clk
0:03:51.9]} 14. Bg5 {[%clk 0:04:31.9]} 14... Bxg5 {[%clk 0:03:42.3]} 15. hxg5
{[%clk 0:04:29.5]} 15... g6 {[%clk 0:03:20.9]} 16. Qe5 {[%clk 0:04:25]} 16...
Rf8 {[%clk 0:03:01.2]} 17. O-O-O {[%clk 0:04:18.2]} 17... Bd7 {[%clk 0:02:51.3]}
18. Kb2 {[%clk 0:04:15.5]} 18... O-O-O {[%clk 0:02:50]} 19. a3 {[%clk 0:04:11]}
19... a5 {[%clk 0:02:33.5]} 20. Be4 {[%clk 0:03:57.4]} 20... Rf4 {[%clk
0:02:07.4]} 21. Bxd5 {[%clk 0:03:54.5]} 21... cxd5 {[%clk 0:01:35.5]} 22. Qxf4
{[%clk 0:03:53.2]} 22... Rf8 {[%clk 0:01:35.2]} 23. Qe3 {[%clk 0:03:51.5]} 23...
Bb5 {[%clk 0:01:12]} 24. Rde1 {[%clk 0:03:46.5]} 24... Kd7 {[%clk 0:01:01.6]}
25. Ne5+ {[%clk 0:03:40.2]} 25... Kc7 {[%clk 0:00:40.6]} 26. f3 {[%clk
0:03:38.4]} 26... Rf5 {[%clk 0:00:27.1]} 27. Nd3 {[%clk 0:02:51.6]} 27... Rxg5
{[%clk 0:00:21]} 28. g4 {[%clk 0:02:50.8]} 28... Bc4 {[%clk 0:00:17.5]} 29. Nc5
{[%clk 0:02:47.9]} 29... b6 {[%clk 0:00:11.8]} 30. Qxg5 {[%clk 0:02:46.8]} 30...
Qxg5 {[%clk 0:00:10.1]} 31. Nxe6+ {[%clk 0:02:46]} 31... Kd6 {[%clk 0:00:06.4]}
32. Nxg5 {[%clk 0:02:45.2]} 32... Bd3 {[%clk 0:00:00.7]} 33. Nf7+ {[%clk
0:02:44]} 1-0